Cogmind - Beta 15 @@@ ROGUE MODE // 2025.05.24 @ 16:45:45 Player: KeKe Result: Destroyed by 3D-9Z4(p) with EM Pulse Gun Performance ------------- Evolutions (0) 0 Regions Visited (3) 600 Robots Destroyed (26) 130 Value Destroyed (654) 654 Prototype IDs (1) 20 Alien Tech Used (0) 0 Bonus (300) 300 TOTAL SCORE: 1704 Bonus ------- Registered with UFD 300 Cogmind --------- Core Integrity 0/250 Matter 298/300 Energy 76/100 System Corruption 1% Temperature Cool (0) Movement Core (200) Ox3 Location -9/Scraptown Parts ------- > --- POWER (1) -------- Subdweller Power Source > --- PROPULSION (2) --- (None) > --- UTILITY (2) ------ Improved Terrain Scanner Terrain Scan Processor > --- WEAPON (2) ------- Companion Sword > --- INVENTORY (5) ---- Hacking Suite Battle Rifle Subdweller Machine Gun DRS Beacon (Ready) Peak State ------------ > --- POWER ------------ Subdweller Power Source > --- PROPULSION ------- Armored Wheel Subdweller Monowheel > --- UTILITY ---------- Improved Terrain Scanner Terrain Scan Processor > --- WEAPON ----------- Subdweller Machine Gun Companion Sword > --- INVENTORY -------- Hacking Suite Battle Rifle DRS Beacon [Rating: 20] Favorites ----------- Power Subdweller Power Source Engine Subdweller Power Source Propulsion Subdweller Monowheel Wheel Subdweller Monowheel Utility Terrain Scan Processor Device Improved Terrain Scanner Storage Small Storage Unit Processor Terrain Scan Processor Weapon Subdweller Machine Gun Energy Gun Particle Gun Ballistic Gun Subdweller Machine Gun Launcher Grenade Launcher Slashing Weapon Companion Sword Build | -11 -10 -10 -9 ------- Run | Yrd Mat Sub Scr Slots Evolved . | . . . . Power . | . . . . Propulsion . | . . . . Utility . | . . . . Weapon . | . . . . Parts Attached 20 | 7 4 7 2 Power 3 | 1 1 1 . Engine 3 | 1 1 1 . Core . | . . . . Reactor . | . . . . Propulsion 6 | 2 1 2 1 Treads . | . . . . Leg . | . . . . Wheel 6 | 2 1 2 1 Hover . | . . . . Flight . | . . . . Utility 4 | 2 . 2 . Device 2 | 1 . 1 . Storage 1 | 1 . . . Processor 1 | . . 1 . Hackware . | . . . . Protection . | . . . . Artifact . | . . . . Weapon 7 | 2 2 2 1 Energy Gun 1 | . 1 . . Energy Cannon . | . . . . Ballistic Gun 4 | 2 . 2 . Ballistic Cannon . | . . . . Launcher 1 | . 1 . . Special Weapon . | . . . . Impact Weapon . | . . . . Slashing Weapon 1 | . . . 1 Piercing Weapon . | . . . . Special Melee Weapon . | . . . . Unidentified Prototypes 1 | . . . 1 Parts Lost 11 | . 7 2 2 Power 1 | . 1 . . Propulsion 5 | . 2 1 2 Utility 1 | . 1 . . Weapon 4 | . 3 1 . Highest Loss Streak 7 | . 7 2 2 To Critical Strikes . | . . . . Average Backups 2 | 1 5 1 1 Power . | . . . . Propulsion . | . 1 . . Utility 1 | . 1 1 1 Weapon . | . 1 . . Tool/Special . | . . . . Unused Backups 2 | 1 . . 1 Power . | . . . . Propulsion . | . . . . Utility 2 | 1 . . 1 Weapon . | . . . . Tool/Special . | . . . . Average Slot Usage (%) 95 | . 96 62 97 Engine 13 | . 13 8 14 Wheel 26 | . 26 10 27 Device 13 | . 13 7 14 Storage 2 | . 14 . . Processor 11 | . . 12 14 Ballistic Gun 23 | . 25 18 23 Slashing Weapon 1 | . . . 2 Peak Build Rating 20 | 7 9 13 20 Average Rating 13 | 5 7 9 15 On Entrance 5 | . 7 3 13 Naked Turns . | . . . . Heaviest Build 15 | 13 15 12 14 Greatest Support 32 | 26 26 20 32 Greatest Overweight (x) 3 | . 3 1 . Average Overweight (x) . | . . . . Largest Inventory Capacity 8 | 8 8 5 5 Average Capacity 5 | 7 8 5 5 Most Carried 6 | 5 6 4 4 Average Carried 2 | 1 5 1 1 Final Capacity 8 | 8 8 5 5 Final Carried 4 | 4 4 1 4 Class Distribution -------------------- 77% | Scavenger-Mutant 22% | Mutant Dominant Class ---------------- Mutant | -10/Materials Scavenger-Mutant | -10/Subcaves Scavenger-Mutant | -9/Scraptown Resources | -11 -10 -10 -9 ----------- Run | Yrd Mat Sub Scr Matter Collected 853 | 336 382 87 48 Remotely . | . . . . Salvage Created 851 | 174 590 87 . Parts 55 | 17 32 6 . Haulers Intercepted . | . . . . Recyclers Shooed . | . . . . Parts Field Recycled . | . . . . Retrieved Matter . | . . . . Parts Self-Destructed 19 | . . 19 . Prevented . | . . . . Kills | -11 -10 -10 -9 ------- Run | Yrd Mat Sub Scr Combat Hostiles Destroyed 15 | . 13 2 . Guns 14 | . 12 2 . AOE 1 | . 1 . . Classes Destroyed 7 | 2 4 1 . Worker 2 | . 2 . . Builder 1 | . 1 . . Tunneler 5 | 5 . . . Recycler 1 | 1 . . . Operator 2 | . 2 . . Grunt 13 | . 13 . . Subdweller 2 | . . 2 . Best Kill Streak 6 | 6 4 2 . Combat Bots Only 3 | . 3 2 . Max Kills in Single Turn 1 | 1 1 1 . Gunslinging . | . . . . Exploded 1 | . 1 . . Melee . | . . . . Uniques/NPCs Destroyed . | . . . . Combat | -11 -10 -10 -9 -------- Run | Yrd Mat Sub Scr Hostile Shots Fired 105 | . 73 13 19 Missed 30 | . 17 5 8 Hits 75 | . 56 8 11 Projectile 75 | . 56 8 11 Critical Strikes 3 | . 1 1 1 Damage Taken 1181 | . 810 182 189 Core 260 | . 158 48 54 Absorbed by Shields . | . . . . Core Remaining (%) 100 | 100 . . . Volleys Fired 89 | 18 61 9 1 Largest 2 | 2 2 2 1 Hottest 90 | 40 85 90 30 Shots Fired 165 | 36 115 13 1 Gun 163 | 36 113 13 1 Cannon . | . . . . Launcher 2 | . 2 . . Special . | . . . . Kinetic 144 | 36 101 6 1 Thermal 19 | . 12 7 . Explosive 2 | . 2 . . Electromagnetic . | . . . . Robot Hit Streak 10 | 4 10 5 . Robot Miss Streak 8 | 2 8 1 . Penetration Max . | . . . . Secondary Targets 2 | . 2 . . Max Gunslinging Chain 1 | . 1 . . Shots Hit Robots 103 | 20 72 11 . Core Hits 42 | 7 31 4 . Critical Kills . | . . . . Critical Parts Destroyed 1 | . 1 . . Critical Strikes 1 | . 1 . . Destroy 1 | . 1 . . Melee Attacks 78 | . . . 78 Impact . | . . . . Slashing 78 | . . . 78 Piercing . | . . . . Sneak Attacks . | . . . . Combat Hostiles . | . . . . Follow-up Attacks . | . . . . Damage Inflicted 1627 | 253 1197 177 . Guns 1430 | 253 1000 177 . Cannons . | . . . . Explosions 197 | . 197 . . Melee . | . . . . Ramming . | . . . . Kinetic 1208 | 253 878 77 . Thermal 222 | . 122 100 . Explosive 197 | . 197 . . Electromagnetic . | . . . . Impact . | . . . . Slashing . | . . . . Piercing . | . . . . Highest Corruption . | . . . . Average Corruption . | . . . . Corruption Purged . | . . . . Corruption Blocked . | . . . . Overload Shots . | . . . . Overflow Damage 33 | . 33 . . Projectiles . | . . . . Explosions 33 | . 33 . . Melee . | . . . . Knockbacks . | . . . . Impact . | . . . . Kinetic . | . . . . Secondary . | . . . . Self-Inflicted Damage 71 | . 71 . . Shots 2 | . 2 . . Rammed . | . . . . Targets Rammed . | . . . . Kicked . | . . . . Crushed . | . . . . Highest Temperature 358 | . 358 . . Average Temperature 174 | . 174 . . Received Heat Transfer 426 | . 426 . . Effects 3 | . 3 . . Energy Bleed 1 | . 1 . . Interference 1 | . 1 . . Matter Decay 1 | . 1 . . Siege Activations . | . . . . Martial Activations . | . . . . Shielding Activations . | . . . . Robots Disrupted . | . . . . Combat Hostiles . | . . . . Robots Corrupted . | . . . . Combat Hostiles . | . . . . Parts Fried . | . . . . Impact Corruptions . | . . . . Robots Melted . | . . . . Combat Hostiles . | . . . . Parts Melted . | . . . . Heat Transferred 518 | . 296 222 . Parts Sabotaged . | . . . . Parts Stolen . | . . . . Parts Stripped . | . . . . Power Chain Reactions . | . . . . Alert | -11 -10 -10 -9 ------- Run | Yrd Mat Sub Scr Maximum Alert Level . | . . . . Low Security (%) 100 | 100 100 . . Level 1 . | . . . . Level 2 . | . . . . Level 3 . | . . . . Level 4 . | . . . . Level 5 . | . . . . High Security . | . . . . Max Security . | . . . . Peak Influence 130 | 10 130 . . Initial . | . . . . Average 48 | 3 58 . . Influence Increases 399 | 30 369 . . Destroy 0b10 Robot/C 260 | . 260 . . Destroy 0b10 Robot/NC 55 | 30 25 . . Destroy Leader 60 | . 60 . . Successful Hack 14 | . 14 . . Destroy Structure 10 | . 10 . . Influence Decreases 399 | 30 293 76 . Entered New Map 37 | . . 37 . Time Decay 272 | 30 223 19 . Lost Part 90 | . 70 20 . Squads Dispatched 2 | . 2 . . Investigation 1 | . 1 . . Extermination . | . . . . Reinforcement 1 | . 1 . . Assault . | . . . . Garrison . | . . . . Intercept . | . . . . Searches Triggered . | . . . . Construction Impeded . | . . . . Haulers Reinforced . | . . . . Active Scanning Responses . | . . . . Cargo Convoy Interrupts . | . . . . Stealth | -11 -10 -10 -9 --------- Run | Yrd Mat Sub Scr Distress Signals 4 | . 4 . . Communications Jammed . | . . . . Distress Signals . | . . . . Times Spotted 52 | . 24 2 26 Peak Tracking Total 35 | . 6 2 35 Tactical Retreats . | . . . . Traps | -11 -10 -10 -9 ------- Run | Yrd Mat Sub Scr Traps Triggered 1 | . 1 . . Indirectly . | . . . . Trap Hack Attempts . | . . . . Triggered . | . . . . Disarmed . | . . . . Reprogrammed . | . . . . Reused . | . . . . Traps Extracted . | . . . . Installed . | . . . . Triggered . | . . . . Machines | -11 -10 -10 -9 ---------- Run | Yrd Mat Sub Scr Machines Disabled 1 | . . . 1 Max in Single Turn 1 | . . . 1 Machines Repaired . | . . . . Machines Dismantled . | . . . . Machines Sabotaged . | . . . . Overloaded Fab Kills . | . . . . Hacking | -11 -10 -10 -9 --------- Run | Yrd Mat Sub Scr Machines Accessed 6 | . 4 . 2 Terminals 4 | . 4 . . Fabricators . | . . . . Repair Stations . | . . . . Recycling Units . | . . . . Scanalyzers . | . . . . Garrison Access . | . . . . Total Hacks 12 | . 9 . 3 Successful 8 | . 5 . 3 Failed 4 | . 4 . . Catastrophic 2 | . 2 . . Database Lockouts . | . . . . Manual 9 | . 9 . . Terminals 9 | . 9 . . Fabricators . | . . . . Repair Stations . | . . . . Recycling Units . | . . . . Scanalyzers . | . . . . Garrison Access . | . . . . Terminal Hacks 5 | . 2 . 3 Record 2 | . . . 2 Robot Analysis 1 | . 1 . . Open Door 1 | . . . 1 Terminal Index 1 | . 1 . . Fabricator Hacks . | . . . . Repair Station Hacks . | . . . . Recycling Unit Hacks . | . . . . Scanalyzer . | . . . . Garrison Access Hacks . | . . . . Unauthorized Hacks 3 | . 3 . . Terminals 3 | . 3 . . Botnet 3 | . 3 . . Fabricators . | . . . . Repair Stations . | . . . . Recycling Units . | . . . . Scanalyzers . | . . . . Garrison Access . | . . . . Data Cores Recovered 1 | . 1 . . Used 1 | . 1 . . Hacking Detections 4 | . 4 . . Full Trace Events . | . . . . Feedback Events . | . . . . Feedback Blocked . | . . . . Robot Schematics Acquired . | . . . . Robots Built . | . . . . Authchips . | . . . . Time . | . . . . Total Robot Build Rating . | . . . . Part Schematics Acquired . | . . . . Parts Built . | . . . . Authchips . | . . . . Time . | . . . . Total Part Build Rating . | . . . . Parts Repaired . | . . . . Time . | . . . . Parts Recycled . | . . . . Recycled Matter . | . . . . Retrieved Matter . | . . . . Retrieved Components . | . . . . Parts Scanalyzed . | . . . . Part Schematics Acquired . | . . . . Parts Damaged . | . . . . Bothacking | -11 -10 -10 -9 ------------ Run | Yrd Mat Sub Scr Used RIF Installer . | . . . . Robots Hacked . | . . . . Non-combat . | . . . . Combat . | . . . . Robot Hacks Applied . | . . . . Relay Couplers Released . | . . . . Fabnet Peak Effective % . | . . . . Robots Rewired . | . . . . Allies Hacked . | . . . . Hacks Repelled . | . . . . Allies | -11 -10 -10 -9 -------- Run | Yrd Mat Sub Scr Total Allies . | . . . . Largest Group . | . . . . Highest-Rated Group . | . . . . Highest-Rated Ally . | . . . . Total Orders . | . . . . Ally Attacks . | . . . . Total Damage . | . . . . Kills . | . . . . Allies Corrupted . | . . . . Allies Melted . | . . . . Intel | -11 -10 -10 -9 ------- Run | Yrd Mat Sub Scr Active Infowar (turns) 2724 | 20 515 55 2134 Terrain 2189 | . . 55 2134 Seismic 535 | 20 515 . . Robot Analysis Total 1 | . 1 . . Derelict Logs Recovered 2 | . . . 2 Drone Launches . | . . . . Drone Recoveries . | . . . . Exploration | -11 -10 -10 -9 ------------- Run | Yrd Mat Sub Scr Turns Passed 2926 | 123 555 114 2134 Spaces Moved 1910 | 59 362 65 1424 Core 34 | 1 16 17 . Treads . | . . . . Legs . | . . . . Wheels 1876 | 58 346 48 1424 Hover . | . . . . Flight . | . . . . Fastest Speed 50 | 50 90 50 90 Average Speed 98 | 90 93 94 100 Slowest Speed 200 | 100 200 110 110 Overloaded Moves . | . . . . Propulsion Burnouts . | . . . . Robots Hopped . | . . . . Potential Cave-ins 6 | . . . 6 Cave-ins Triggered . | . . . . Exploration Rate (%) 42 | 4 68 6 91 Regions Visited 3 Branch Regions 2 Pre-discovered Areas 1 | . . . 1 Known Exits Taken . | . . . . Unknown Exits Taken 3 | 1 1 1 . Scrap Searched 5 | . . . 5 Spaces Dug 14 | . . . 14 Terrain Destroyed 27 | . 13 . 14 Melee 14 | . . . 14 Projectile . | . . . . AOE 13 | . 13 . . Terrain Rammed . | . . . . Walls Destroyed . | . . . . Machines Disabled . | . . . . Actions | -11 -10 -10 -9 --------- Run | Yrd Mat Sub Scr Total 2672 | 89 465 103 2015 Wait 560 | . 33 22 505 Move 1907 | 58 361 64 1424 Hop . | . . . . Pick Up 11 | 5 4 . 2 Fast Attach 12 | 7 . 4 1 Attach 6 | . 2 3 1 Detach 2 | . . . 2 Swap 2 | . 2 . . Drop 4 | 1 2 1 . Fire 89 | 18 61 9 1 Melee 78 | . . . 78 Ram . | . . . . Kick . | . . . . Crush . | . . . . Escape Stasis . | . . . . Rewire 1 | . . . 1 Trap . | . . . . Miscellaneous . | . . . . Route ------- -11/Scrapyard -10/Materials (discovered 4 exits: [*Mat x2] / [*Min] / [*Sub]) -10/Subcaves -9/Scraptown (discovered 2 exits: [*Fac x2]) History --------- Turn | Location | Event 15 | -11/Scrapyard | Discovered new exit (range 16) 124 | -11/Scrapyard | Entered Materials 210 | -10/Materials | Discovered new exit (range 13) 314 | -10/Materials | Build established: Mutant 508 | -10/Materials | Discovered new exit (range 9) 569 | -10/Materials | Discovered new exit (range 16) 646 | -10/Materials | Core integrity fell below 50% 649 | -10/Materials | Discovered new exit (range 13) 679 | -10/Materials | Entered Subcaves 680 | -10/Subcaves | Approached by a straggling Scientist 687 | -10/Subcaves | Lost 7 parts (1p2n1u3w) 703 | -10/Subcaves | Core integrity fell below 20% 788 | -10/Subcaves | Scientist uncovered a shortcut to Scraptown 793 | -10/Subcaves | Entered Scraptown 953 | -9/Scraptown | Discovered new exit (range 5) 973 | -9/Scraptown | Build established: Scavenger-Mutant 987 | -9/Scraptown | Scanned Subdweller tech in exchange for log data 990 | -9/Scraptown | Learned Research emergency access door positions 991 | -9/Scraptown | Learned location of Testing (-2) 1062 | -9/Scraptown | Visited Red Mages 1100 | -9/Scraptown | Visited TADAMA 1133 | -9/Scraptown | Visited SPCMW 1155 | -9/Scraptown | Visited Shadow of the Wyrm 1170 | -9/Scraptown | Visited Assassins FH 1300 | -9/Scraptown | Visited UFD Registry 1300 | -9/Scraptown | Registered with UFD as "Rustblaster" 1321 | -9/Scraptown | Visited Supply Room 1337 | -9/Scraptown | Visited Junk Repository 1351 | -9/Scraptown | Visited Sword Containment 2046 | -9/Scraptown | Visited Symbiants 2097 | -9/Scraptown | Visited Derelict Rescue Squad 2107 | -9/Scraptown | Found DRS Beacon 2129 | -9/Scraptown | Visited DA-N13 Charitable Foundation 2144 | -9/Scraptown | Found DCF Scrap (27 items) 2166 | -9/Scraptown | Visited Science Testing Area 2183 | -9/Scraptown | Visited Observation Area 2274 | -9/Scraptown | Visited Research Penetration Think Tank 2295 | -9/Scraptown | Visited Scrapoid Research Area 2348 | -9/Scraptown | Discovered new exit (range 5) 2768 | -9/Scraptown | Attacked by Scraptown defenders 2927 | -9/Scraptown | Destroyed by 3D-9Z4(p) with EM Pulse Gun Last Messages --------------- Companion Sword: "Taking on walls now, I see." 02777_ The unstable cave ceiling collapses. 02867_ ANNOUNCEMENT: Triborg tracking relay activated. Stay clear or you only have yourself to blame! 02880_ Machine disabled. Companion Sword: "Good luck to us." 02919_ Sub. Monowheel destroyed. 02922_ Optimus: "Hey you're that new member, I knew your registry entry had something suspicious about it!" 02923_ 3D-9Z4(p): "Did MC send you?" 02924_ 4S-XZU(h): "Nice to scrap you!" 02925_ TK-YSF(h): "You're not making it out here alive!" 02926_ The unstable cave ceiling collapses. 02926_ 6J-BB9(E) crushed by falling debris. 02926_ Connecting with 0bPrime Members Only... >>Record! "0bP002 Project Fedlink" Information available on a need-to-know basis. 02926_ 0bPrime Members Only disabled. 02926_ Machine disabled. 02926_ Arm. Wheel destroyed. Map ----- +----------------------------------------------------+ | ??#" "#???##=!]##= ## ## #[ #!!*# ? | | ??#"" ""#?#?##=%[[!!%[## ## # [# [ #? | | ?## ##??##*[/=*! ## ## # # ?# | | ### ##?###*][!*/ ## ## # | | ### ######!* =! ## ## # ? | | #?###### ###?#??#### ########### ##### ## ####### | | ?#?##### ########### ########### ##### ## ####### | | ####"""" """"""""""" """"""""""" """"" "" "## "" | | ?#?#" "## | | #??#" "## " | | #??#" "## " | | ####" "## " | | ####" " | | """" """""""""""""""""""""""""""" "## " | | """" """""""""""""""""""""""""""" "## " | | """" ""###### ################"" "## """ | | """" ""#? #####?#####"" "###### | | """" ""#? ?"##########"" "##"""" | | """" ""# ? "" "" ###?#?#####"" "## """ | | """" ""# "" "" X"######?###"" "## | | """" ""# " EE g " #?####### #"" "## | | ####" "" pp"" | | #?##" "" ggE"" 3 "## | | ####" ""# "Ej E" ######### #"" "## | | ""# ""hh j"" ##?##??###"" "## " " | | ""# "" E"" p @##########"" "###### | | ""# j r E "# # ####" "###### | | ""# h E ####### ###"" "###### | | ""###### ###########"#"##"" "## " | | """""""""""""""""""""""" """ "## "" | | """"""""""""""""""""""""" "" " | | "## | | "## | | "## | | """#" ## | | ?""#" # " | | ?"?#"""""" """"""""""" """"""""""" """""" ## """ | | "?"####### ########### ########### ###### ###### | | """##?## ##? ? ?### ## ###### | | ?""#??## ### #### ## ###### | | """##??#"" !"###! # # ]#### ## ###### | | """#####""*** "!###[[# !=# !##?#### X#### ###### | | """#####?/*"" !"###[!#[!!# ####### ##### ###### | | ?""#####?/""" ""############?## # ###### | | """#?###########??########?#### # | | """?#?#?####?#??###?##?######## # | | ?""########?##??#??##?##?###### # | | ?###??#??#?###??#####?###?#?### # | | #################??#########?## # | | ##?###?#?#####?##?###?#?##??#?########### ###### | +----------------------------------------------------+ Best States ------------- Heat Dissipation 25 Energy Generation 15 Energy Capacity 250 Matter Stores 300 Matter Capacity 300 Sight Range 16 Terrain Scan Range 16 Terrain Scan Density 85 Evasion (%) 50 Item Schematics ----------------- None Robot Schematics ------------------ None Fabricated ------------ Nothing Repaired ---------- Nothing Alien Tech Used ----------------- None Achievements -------------- None Challenges ------------ None Game ------ Seed EnergyUltimateProjector Manual? 0 Play Time 00:30:37 Cumulative 87.8 hours Start 2025.05.24 @ 16:12:27 End 2025.05.24 @ 16:45:45 Sessions 1 Manual Loads 0 Difficulty Rogue Special Mode None Game No. 82 Rogue 82 Adventurer 0 Explorer 0 Win Type - Total 1 Types 1/0/0/0/0/0/0/0/0/0 Lore% 45 Gallery% 41 Achievement% 43 Wizard Run 0 Options --------- Layout 0 ASCII 0 Keyboard 0 Movement Mouse Keybinds 0 Fullscreen 2 Font 18/SmallcapsGlow Map View 76x50 Zoom Use 0% Tactical HUD 1 Map Filters NONE Filters NONE Steam 1 RUN: 79a18037-e601-41c0-93a8-b164328cb9bf